Cogmind - Beta 14 @@@ ROGUE MODE // 2024.10.20 @ 03:28:22 Player: XDRM Result: Destroyed by B-99 Colossus with Multirail Performance ------------- Evolutions (9) 4500 Regions Visited (20) 4000 Robots Destroyed (13) 65 Value Destroyed (463) 463 Prototype IDs (26) 520 Alien Tech Used (0) 0 Bonus (2889) 2889 TOTAL SCORE: 12437 Bonus ------- Pacifist 564 High Alert Combat Kills 125 Entered Garrisons 400 Used RIF Installer 500 Entered DSFs 1000 Aligned with FarCom 300 Cogmind --------- Core Integrity 0/1600 Matter 5/300 Energy 50/100 System Corruption 6% Temperature Cool (2) Movement Flying (40) Location -1/Garrison Parts ------- > --- POWER (2) -------- (None) > --- PROPULSION (6) --- Q-thruster > --- UTILITY (15) ----- Cloaking Device > --- WEAPON (2) ------- (None) > --- INVENTORY (5) ---- Quantum Reactor Peak State ------------ > --- POWER ------------ Light Antimatter Reactor Light Antimatter Reactor > --- PROPULSION ------- Makeshift Flight Unit Q-thruster Q-thruster Q-thruster > --- UTILITY ---------- Machine Analyzer Improved Cloaking Device Hacking Suite Hacking Suite Improved Hacking Suite Improved Hacking Suite Improved Hacking Suite Improved Hacking Suite System Shield System Shield System Shield System Shield > --- WEAPON ----------- Improved Remote Datajack > --- INVENTORY -------- Light Particle Reactor Advanced Power Amplifier Advanced Terrain Scan Processor Wave Gun Matter Neutralizer [Rating: 99] Favorites ----------- Power Light Antimatter Reactor Engine Deuterium Engine Power Core Fusion Compressor Reactor Light Antimatter Reactor Propulsion Q-thruster Treads Light Treads Leg Aluminum Leg Hover Unit Cooled Linear Gravjet Flight Unit Q-thruster Utility Improved Hacking Suite Device Improved Cloaking Device Processor Machine Analyzer Hackware Improved Hacking Suite Protection Layered Light Armor Plating Weapon Improved Remote Datajack Energy Cannon Long-range Proton Cannon Launcher Shock Bomb Launcher Special Weapon Improved Remote Datajack Slashing Weapon Longsword +1 Build | -11 -10 -9 -9 -9 -8 -8 -8 -8 -7 -7 -6 -5 -5 -5 -4 -4 -3 -2 -1 -1 ------- Run | Yrd Mat Mat Min Exi Min Mat Gar Mat Fac DSF Fac Fac Upp Upp Fac DSF Res Res Acc Gar Slots Evolved 18 | . . 2 . . . 2 . . 2 . 2 2 . . 2 . 2 2 2 . Power 1 | . . . . . . . . . . . . 1 . . . . . . . . Propulsion 4 | . . 2 . . . . . . . . . . . . . . . . 2 . Utility 13 | . . . . . . 2 . . 2 . 2 1 . . 2 . 2 2 . . Weapon . | . . . . . . . . . . . . . . . . . . . . . Parts Attached 74 | . . 4 . 2 2 1 1 11 . . 5 3 9 . 2 14 8 4 6 2 Power 7 | . . . . . . . . 1 . . 1 . 1 . . 2 . 1 . 1 Engine 1 | . . . . . . . . . . . 1 . . . . . . . . . Core 2 | . . . . . . . . 1 . . . . 1 . . . . . . . Reactor 4 | . . . . . . . . . . . . . . . . 2 . 1 . 1 Propulsion 30 | . . 4 . 1 . . . 6 . . 2 . 2 . . 4 3 2 6 . Treads 1 | . . . . . . . . 1 . . . . . . . . . . . . Leg 1 | . . . . . . . . 1 . . . . . . . . . . . . Wheel . | . . . . . . . . . . . . . . . . . . . . . Hover 2 | . . . . . . . . . . . . . . . . . . 2 . . Flight 26 | . . 4 . 1 . . . 4 . . 2 . 2 . . 4 3 . 6 . Utility 27 | . . . . . 1 1 1 3 . . 2 1 5 . 1 8 2 1 . 1 Device 9 | . . . . . . . . . . . 1 . 3 . 1 . 2 1 . 1 Storage . | . . . . . . . . . . . . . . . . . . . . . Processor 1 | . . . . . 1 . . . . . . . . . . . . . . . Hackware 10 | . . . . . . . . . . . 1 . 1 . . 8 . . . . Protection 7 | . . . . . . 1 1 3 . . . 1 1 . . . . . . . Artifact . | . . . . . . . . . . . . . . . . . . . . . Weapon 10 | . . . . 1 1 . . 1 . . . 2 1 . 1 . 3 . . . Energy Gun . | . . . . . . . . . . . . . . . . . . . . . Energy Cannon 3 | . . . . . . . . . . . . 1 1 . . . 1 . . . Ballistic Gun . | . . . . . . . . . . . . . . . . . . . . . Ballistic Cannon . | . . . . . . . . . . . . . . . . . . . . . Launcher 1 | . . . . . . . . 1 . . . . . . . . . . . . Special Weapon 5 | . . . . . 1 . . . . . . 1 . . 1 . 2 . . . Impact Weapon . | . . . . . . . . . . . . . . . . . . . . . Slashing Weapon 1 | . . . . 1 . . . . . . . . . . . . . . . . Piercing Weapon . | . . . . . . . . . . . . . . . . . . . . . Special Melee Weapon . | . . . . . . . . . . . . . . . . . . . . . Unidentified Prototypes 3 | . . 1 . . . . . 1 . . . . . . . . . 1 . . Corrupted Parts 1 | . . . . . . . . 1 . . . . . . . . . . . . System Corruption 3 | . . . . . . . . 3 . . . . . . . . . . . . Parts Lost 36 | . . . . . . 1 . 7 . . . 1 4 . . 5 10 . 8 . Power 4 | . . . . . . . . 1 . . . . 1 . . 1 . . 1 . Propulsion 16 | . . . . . . . . 3 . . . . 2 . . 2 5 . 4 . Utility 12 | . . . . . . . . 2 . . . 1 . . . 2 4 . 3 . Weapon 4 | . . . . . . 1 . 1 . . . . 1 . . . 1 . . . Highest Loss Streak 9 | . . . . . . 1 . 7 . . . 1 2 . . 5 9 . 4 . To Critical Strikes 1 | . . . . . . . . . . . . . . . . . . . 1 . Average Slot Usage (%) 46 | . . 22 44 28 24 30 32 45 23 23 41 50 50 52 51 75 84 21 15 8 Reactor 2 | . . . . . . . . . . . . . . . . . 8 3 1 . Flight 15 | . . 22 44 27 11 9 9 6 15 15 21 23 21 23 21 18 17 . 6 4 Device 1 | . . . . . . . . . . . 3 3 4 . . 1 2 2 1 4 Processor 4 | . . . . . 6 9 9 9 7 7 6 5 5 5 5 5 4 . . . Hackware 13 | . . . . . . . . . . . 3 5 5 11 10 40 46 8 5 . Protection 3 | . . . . . . 3 14 22 . . . 1 . 5 5 2 . . . . Special Weapon 1 | . . . . . 6 9 . . . . . 2 3 . 3 5 3 . . . Peak Build Rating 99 | . . 12 12 32 36 38 38 53 12 12 29 41 49 35 45 96 99 39 68 22 Average Rating 45 | . . 5 12 21 34 36 37 38 11 12 22 33 35 35 39 65 92 32 35 13 On Entrance 25 | . . . 12 12 32 36 37 38 11 12 12 29 32 35 35 45 96 10 39 9 Naked Turns 59 | . 31 26 . 1 . . . . . . . . . . . . . . 1 . Heaviest Build 29 | . . . . 3 1 6 6 23 . . 13 24 22 7 12 28 29 20 20 1 Greatest Support 50 | 3 3 20 20 50 50 50 50 50 10 10 22 22 24 24 24 32 32 23 45 8 Greatest Overweight (x) 7 | . . . . . . . . 7 . . . 1 1 . . . . . 1 . Average Overweight (x) . | . . . . . . . . . . . . . . . . . . . . . Largest Inventory Capacity 5 | 5 5 5 5 5 5 5 5 5 5 5 5 5 5 5 5 5 5 5 5 5 Average Capacity 5 | 5 5 5 5 5 5 5 5 5 5 5 5 5 5 5 5 5 5 5 5 5 Most Carried 5 | . . 2 2 2 2 2 2 5 3 5 5 3 5 2 2 5 5 4 5 1 Average Carried 2 | . . . 2 2 1 1 1 1 2 3 1 1 2 2 1 4 4 3 3 . Final Capacity 5 | 5 5 5 5 5 5 5 5 5 5 5 5 5 5 5 5 5 5 5 5 5 Final Carried 5 | . . 2 2 2 1 2 1 1 3 5 . 3 2 2 1 5 3 4 2 1 Class Distribution -------------------- 35% | Mutant 26% | Sprinter 14% | Wizard-Mutant 9% | Wizard-Sprinter 8% | Hacker-Mutant 5% | Derelict-Sprinter Dominant Class ---------------- Mutant | -10/Materials Mutant | -9/Materials Mutant | -9/Mines Mutant | -9/Exiles Mutant | -8/Mines Mutant | -8/Materials Mutant | -8/Garrison Mutant | -8/Materials Sprinter | -7/Factory Sprinter | -7/DSF Sprinter | -6/Factory Sprinter | -5/Factory Sprinter | -5/Upper Caves Derelict-Sprinter | -5/Upper Caves Derelict-Sprinter | -4/Factory Derelict-Sprinter | -4/DSF Wizard-Mutant | -3/Research Hacker-Mutant | -2/Research Mutant | -1/Access Mutant | -1/Garrison Resources | -11 -10 -9 -9 -9 -8 -8 -8 -8 -7 -7 -6 -5 -5 -5 -4 -4 -3 -2 -1 -1 ----------- Run | Yrd Mat Mat Min Exi Min Mat Gar Mat Fac DSF Fac Fac Upp Upp Fac DSF Res Res Acc Gar Matter Collected 698 | 71 . . . . 58 . . . . 3 269 . 221 . . 9 . 39 28 . Remotely . | . . . . . . . . . . . . . . . . . . . . . Salvage Created 430 | . . . . . . . . 430 . . . . . . . . . . . . Parts 24 | . . . . . . . . 24 . . . . . . . . . . . . Haulers Intercepted 1 | . . . . . . . . 1 . . . . . . . . . . . . Recyclers Shooed . | . . . . . . . . . . . . . . . . . . . . . Parts Field Recycled . | . . . . . . . . . . . . . . . . . . . . . Retrieved Matter . | . . . . . . . . . . . . . . . . . . . . . Parts Self-Destructed 1 | . . . . . . . . . . . . . 1 . . . . . . . Prevented . | . . . . . . . . . . . . . . . . . . . . . Kills | -11 -10 -9 -9 -9 -8 -8 -8 -8 -7 -7 -6 -5 -5 -5 -4 -4 -3 -2 -1 -1 ------- Run | Yrd Mat Mat Min Exi Min Mat Gar Mat Fac DSF Fac Fac Upp Upp Fac DSF Res Res Acc Gar Combat Hostiles Destroyed 9 | . . . . . . . . 9 . . . . . . . . . . . . AOE 8 | . . . . . . . . 8 . . . . . . . . . . . . Classes Destroyed 5 | . . . . . . . . 5 . . . . . . . . . . . . Worker 2 | . . . . . . . . 2 . . . . . . . . . . . . Builder 1 | . . . . . . . . 1 . . . . . . . . . . . . Hauler 1 | . . . . . . . . 1 . . . . . . . . . . . . Grunt 8 | . . . . . . . . 8 . . . . . . . . . . . . Sentry 1 | . . . . . . . . 1 . . . . . . . . . . . . Best Kill Streak 8 | . . . . . . . . 8 . . . . . . . . . . . . Combat Bots Only 5 | . . . . . . . . 5 . . . . . . . . . . . . Max Kills in Single Turn 5 | . . . . . . . . 5 . . . . . . . . . . . . Gunslinging . | . . . . . . . . . . . . . . . . . . . . . Exploded 3 | . . . . . . . . 3 . . . . . . . . . . . . Melee . | . . . . . . . . . . . . . . . . . . . . . Uniques/NPCs Destroyed . | . . . . . . . . . . . . . . . . . . . . . Combat | -11 -10 -9 -9 -9 -8 -8 -8 -8 -7 -7 -6 -5 -5 -5 -4 -4 -3 -2 -1 -1 -------- Run | Yrd Mat Mat Min Exi Min Mat Gar Mat Fac DSF Fac Fac Upp Upp Fac DSF Res Res Acc Gar Hostile Shots Fired 736 | . 3 20 15 . 21 9 122 125 . 6 . . 69 13 . 6 127 4 186 10 Missed 355 | . 1 14 9 . 11 4 65 38 . 5 . . 34 9 . 3 67 3 88 4 Damage Taken 7997 | . 23 52 48 . 114 34 825 1548 . 53 . 187 661 81 . 252 1607 27 2415 70 Core 3777 | . 23 40 32 . 8 6 123 419 . 53 . 102 243 18 . 114 987 . 1562 47 Absorbed by Shields 42 | . . . . . . . . . . . . 30 . . . . . . 12 . Redirected to Shielding 120 | . . . . . . . 19 . . . . . 32 15 . 54 . . . . Regen/Repaired (Parts) 74 | . . . . . . . . . . . . . . . . . 74 . . . Core Remaining (%) 73 | 100 90 . . . 80 . . . . 92 100 . . 63 . 90 24 100 . . Volleys Fired 44 | . . . . . 2 5 . 10 . . . 13 8 . . . 6 . . . Largest 1 | . . . . . 1 1 . 1 . . . 1 1 . . . 1 . . . Hottest 105 | . . . . . 100 100 . 36 . . . 81 81 . . . 105 . . . Shots Fired 44 | . . . . . 2 5 . 10 . . . 13 8 . . . 6 . . . Gun . | . . . . . . . . . . . . . . . . . . . . . Cannon 10 | . . . . . . . . . . . . 4 5 . . . 1 . . . Launcher 10 | . . . . . . . . 10 . . . . . . . . . . . . Special 24 | . . . . . 2 5 . . . . . 9 3 . . . 5 . . . Kinetic . | . . . . . . . . . . . . . . . . . . . . . Thermal 8 | . . . . . 2 5 . . . . . . . . . . 1 . . . Explosive . | . . . . . . . . . . . . . . . . . . . . . Electromagnetic 19 | . . . . . . . . 10 . . . 4 5 . . . . . . . Robot Hit Streak 6 | . . . . . . . . 3 . . . 2 5 . . . 6 . . . Robot Miss Streak 2 | . . . . . . . . 2 . . . 1 . . . . 2 . . . Penetration Max . | . . . . . . . . . . . . . . . . . . . . . Secondary Targets . | . . . . . . . . . . . . . . . . . . . . . Shots Hit Robots 14 | . . . . . . . . 4 . . . 5 3 . . . 2 . . . Core Hits 19 | . . . . . . . . 19 . . . . . . . . . . . . Critical Kills . | . . . . . . . . . . . . . . . . . . . . . Critical Parts Destroyed . | . . . . . . . . . . . . . . . . . . . . . Critical Strikes . | . . . . . . . . . . . . . . . . . . . . . Melee Attacks . | . . . . . . . . . . . . . . . . . . . . . Impact . | . . . . . . . . . . . . . . . . . . . . . Slashing . | . . . . . . . . . . . . . . . . . . . . . Piercing . | . . . . . . . . . . . . . . . . . . . . . Sneak Attacks . | . . . . . . . . . . . . . . . . . . . . . Combat Hostiles . | . . . . . . . . . . . . . . . . . . . . . Follow-up Attacks . | . . . . . . . . . . . . . . . . . . . . . Damage Inflicted 1338 | . . . . . . . . 1330 . . . . . . . . . 8 . . Guns . | . . . . . . . . . . . . . . . . . . . . . Cannons . | . . . . . . . . . . . . . . . . . . . . . Explosions 1330 | . . . . . . . . 1330 . . . . . . . . . . . . Melee . | . . . . . . . . . . . . . . . . . . . . . Ramming 8 | . . . . . . . . . . . . . . . . . . 8 . . Kinetic . | . . . . . . . . . . . . . . . . . . . . . Thermal 163 | . . . . . . . . 163 . . . . . . . . . . . . Explosive 787 | . . . . . . . . 787 . . . . . . . . . . . . Electromagnetic 380 | . . . . . . . . 380 . . . . . . . . . . . . Impact . | . . . . . . . . . . . . . . . . . . . . . Slashing . | . . . . . . . . . . . . . . . . . . . . . Piercing . | . . . . . . . . . . . . . . . . . . . . . Highest Corruption 6 | . . 1 1 1 1 . . 3 . . 2 . . . . . . . 6 6 Average Corruption 2 | . . 1 1 1 1 . . 3 . . 1 . . . . . . . 4 6 Corruption Purged . | . . . . . . . . . . . . . . . . . . . . . Corruption Blocked . | . . . . . . . . . . . . . . . . . . . . . Effects 13 | . . . . 1 . . . 1 . . 1 . . . . . . . 8 2 Message Errors 3 | . . . . . . . . . . . . . . . . . . . 3 . Matter Fused 3 | . . . . . . . . . . . . . . . . . . . 2 1 Heat Flow Errors 3 | . . . . 1 . . . . . . 1 . . . . . . . . 1 Energy Discharges 2 | . . . . . . . . 1 . . . . . . . . . . 1 . Parts Rejected 1 | . . . . . . . . . . . . . . . . . . . 1 . Data Loss (minor) 1 | . . . . . . . . . . . . . . . . . . . 1 . Overload Shots . | . . . . . . . . . . . . . . . . . . . . . Overflow Damage 85 | . . . . . . . . 85 . . . . . . . . . . . . Projectiles . | . . . . . . . . . . . . . . . . . . . . . Explosions 85 | . . . . . . . . 85 . . . . . . . . . . . . Melee . | . . . . . . . . . . . . . . . . . . . . . Knockbacks . | . . . . . . . . . . . . . . . . . . . . . Impact . | . . . . . . . . . . . . . . . . . . . . . Kinetic . | . . . . . . . . . . . . . . . . . . . . . Secondary . | . . . . . . . . . . . . . . . . . . . . . Self-Inflicted Damage 25 | . . . . . . . . 21 . . . . . . . . . 4 . . Shots 1 | . . . . . . . . 1 . . . . . . . . . . . . Rammed 1 | . . . . . . . . . . . . . . . . . . 1 . . Targets Rammed 1 | . . . . . . . . . . . . . . . . . . 1 . . Kicked . | . . . . . . . . . . . . . . . . . . . . . Crushed . | . . . . . . . . . . . . . . . . . . . . . Highest Temperature 335 | . . . . 255 17 32 19 335 . . 156 104 96 . . . 36 . . 86 Average Temperature 116 | . . . . 131 10 10 6 180 . . 82 52 46 . . . 11 . . 62 Received Heat Transfer 1413 | . 12 6 . . 36 . 324 738 . . . . 159 . . . 30 . 108 . Effects 3 | . . . . . . . . 3 . . . . . . . . . . . . Energy Bleed 1 | . . . . . . . . 1 . . . . . . . . . . . . Interference 1 | . . . . . . . . 1 . . . . . . . . . . . . Matter Decay 1 | . . . . . . . . 1 . . . . . . . . . . . . Siege Activations . | . . . . . . . . . . . . . . . . . . . . . Robots Corrupted 1 | . . . . . . . . 1 . . . . . . . . . . . . Combat Hostiles 1 | . . . . . . . . 1 . . . . . . . . . . . . Parts Fried . | . . . . . . . . . . . . . . . . . . . . . Impact Corruptions . | . . . . . . . . . . . . . . . . . . . . . Robots Melted . | . . . . . . . . . . . . . . . . . . . . . Combat Hostiles . | . . . . . . . . . . . . . . . . . . . . . Parts Melted . | . . . . . . . . . . . . . . . . . . . . . Heat Transferred 200 | . . . . . . . . 200 . . . . . . . . . . . . Parts Sabotaged . | . . . . . . . . . . . . . . . . . . . . . Parts Stolen . | . . . . . . . . . . . . . . . . . . . . . Parts Stripped . | . . . . . . . . . . . . . . . . . . . . . Power Chain Reactions 1 | . . . . . . . . 1 . . . . . . . . . . . . Alert | -11 -10 -9 -9 -9 -8 -8 -8 -8 -7 -7 -6 -5 -5 -5 -4 -4 -3 -2 -1 -1 ------- Run | Yrd Mat Mat Min Exi Min Mat Gar Mat Fac DSF Fac Fac Upp Upp Fac DSF Res Res Acc Gar Peak Influence 759 | . 8 93 81 . 122 52 473 759 355 278 160 128 . . 336 37 350 183 691 602 Initial 552 | . . 3 36 . . 47 27 230 340 248 145 78 . . 331 37 18 150 48 552 Average 197 | . 7 22 57 . 29 49 237 500 341 256 152 100 . . 181 19 69 154 300 552 Maximum Alert Level 3 | . . . . . . . 2 3 1 1 . . . . 1 . 1 . 2 2 Low Security (%) 65 | 100 100 100 100 . 100 100 49 . . . 100 100 . . 50 100 87 100 50 . Level 1 17 | . . . . . . . 30 43 100 100 . . . . 49 . 12 . 7 . Level 2 12 | . . . . . . . 20 17 . . . . . . . . . . 42 100 Level 3 4 | . . . . . . . . 38 . . . . . . . . . . . . Level 4 . | . . . . . . . . . . . . . . . . . . . . . Level 5 . | . . . . . . . . . . . . . . . . . . . . . High Security . | . . . . . . . . . . . . . . . . . . . . . Max Security . | . . . . . . . . . . . . . . . . . . . . . Squads Dispatched 23 | . . 3 . . . . . 2 . . 4 2 . . . . 6 1 5 . Investigation 15 | . . 3 . . . . . 1 . . 4 . . . . . 2 1 4 . Extermination 2 | . . . . . . . . . . . . . . . . . 1 . 1 . Reinforcement 6 | . . . . . . . . 1 . . . 2 . . . . 3 . . . Assault . | . . . . . . . . . . . . . . . . . . . . . Garrison . | . . . . . . . . . . . . . . . . . . . . . Intercept . | . . . . . . . . . . . . . . . . . . . . . Searches Triggered 1 | . . . . . . . . . . . . . . . . . . . 1 . Construction Impeded . | . . . . . . . . . . . . . . . . . . . . . Haulers Reinforced . | . . . . . . . . . . . . . . . . . . . . . Active Scanning Responses . | . . . . . . . . . . . . . . . . . . . . . Cargo Convoy Interrupts . | . . . . . . . . . . . . . . . . . . . . . Stealth | -11 -10 -9 -9 -9 -8 -8 -8 -8 -7 -7 -6 -5 -5 -5 -4 -4 -3 -2 -1 -1 --------- Run | Yrd Mat Mat Min Exi Min Mat Gar Mat Fac DSF Fac Fac Upp Upp Fac DSF Res Res Acc Gar Distress Signals 9 | . . 1 . . . . 1 . . . . . . . . . 5 . 2 . Communications Jammed . | . . . . . . . . . . . . . . . . . . . . . Distress Signals . | . . . . . . . . . . . . . . . . . . . . . Times Spotted 271 | . 1 17 3 . 10 4 40 30 1 4 . 4 41 7 . 3 53 3 48 2 Peak Tracking Total 23 | . 1 16 3 . 7 4 14 11 1 2 . 1 13 7 . 1 21 4 23 3 Tactical Retreats 54 | . . 1 1 . 2 . 6 6 . 2 . . 9 1 . 3 10 . 13 . Traps | -11 -10 -9 -9 -9 -8 -8 -8 -8 -7 -7 -6 -5 -5 -5 -4 -4 -3 -2 -1 -1 ------- Run | Yrd Mat Mat Min Exi Min Mat Gar Mat Fac DSF Fac Fac Upp Upp Fac DSF Res Res Acc Gar Traps Triggered 7 | . . 1 . . . . 1 1 . . . 1 . . . . 1 . 2 . Indirectly . | . . . . . . . . . . . . . . . . . . . . . Trap Hack Attempts . | . . . . . . . . . . . . . . . . . . . . . Triggered . | . . . . . . . . . . . . . . . . . . . . . Disarmed . | . . . . . . . . . . . . . . . . . . . . . Reprogrammed . | . . . . . . . . . . . . . . . . . . . . . Reused . | . . . . . . . . . . . . . . . . . . . . . Traps Extracted . | . . . . . . . . . . . . . . . . . . . . . Installed . | . . . . . . . . . . . . . . . . . . . . . Triggered 2 | . . . . . . . . . . . . . 2 . . . . . . . Machines | -11 -10 -9 -9 -9 -8 -8 -8 -8 -7 -7 -6 -5 -5 -5 -4 -4 -3 -2 -1 -1 ---------- Run | Yrd Mat Mat Min Exi Min Mat Gar Mat Fac DSF Fac Fac Upp Upp Fac DSF Res Res Acc Gar Machines Disabled 3 | . . . . . . . . 3 . . . . . . . . . . . . Max in Single Turn 2 | . . . . . . . . 2 . . . . . . . . . . . . Garrison Access 1 | . . . . . . . . . . . . 1 . . . . . . . . Garrison Relay 1 | . . . . . . . 1 . . . . . . . . . . . . . Machines Repaired . | . . . . . . . . . . . . . . . . . . . . . Machines Dismantled . | . . . . . . . . . . . . . . . . . . . . . Machines Sabotaged . | . . . . . . . . . . . . . . . . . . . . . Overloaded Fab Kills . | . . . . . . . . . . . . . . . . . . . . . Hacking | -11 -10 -9 -9 -9 -8 -8 -8 -8 -7 -7 -6 -5 -5 -5 -4 -4 -3 -2 -1 -1 --------- Run | Yrd Mat Mat Min Exi Min Mat Gar Mat Fac DSF Fac Fac Upp Upp Fac DSF Res Res Acc Gar Machines Accessed 44 | . 1 3 . 1 . 1 3 1 1 . 5 3 1 . 3 . 11 3 6 1 Terminals 33 | . 1 3 . . . . 3 1 1 . 5 1 . . 3 . 8 2 4 1 Fabricators 1 | . . . . . . . . . . . . . . . . . . . 1 . Repair Stations 1 | . . . . . . . . . . . . . . . . . 1 . . . Recycling Units 1 | . . . . . . . . . . . . . . . . . 1 . . . Scanalyzers 2 | . . . . . . . . . . . . . . . . . 1 1 . . Garrison Access 4 | . . . . . . 1 . . . . . 2 . . . . . . 1 . Total Hacks 150 | . 1 10 . 1 . 3 5 2 1 . 13 5 1 . 7 . 74 9 15 3 Successful 77 | . 1 . . 1 . 1 2 . 1 . 1 3 1 . 6 . 50 4 5 1 Failed 73 | . . 10 . . . 2 3 2 . . 12 2 . . 1 . 24 5 10 2 Catastrophic 17 | . . 3 . . . . . 2 . . 5 . . . . . 1 2 4 . Database Lockouts . | . . . . . . . . . . . . . . . . . . . . . Manual 103 | . . 10 . 1 . . . 2 . . 9 1 . . 5 . 65 5 5 . Terminals 128 | . 1 10 . . . . 5 2 1 . 13 2 . . 7 . 66 6 12 3 Fabricators 2 | . . . . . . . . . . . . . . . . . . . 2 . Repair Stations 2 | . . . . . . . . . . . . . . . . . 2 . . . Recycling Units 2 | . . . . . . . . . . . . . . . . . 2 . . . Scanalyzers 7 | . . . . . . . . . . . . . . . . . 4 3 . . Garrison Access 7 | . . . . . . 3 . . . . . 3 . . . . . . 1 . Terminal Hacks 60 | . 1 . . 1 . . 2 . 1 . 1 . 1 . 6 . 42 1 3 1 Record 27 | . . . . . . . . . . . . . . . 2 . 23 . 2 . Robot Analysis 10 | . . . . . . . . . . . . . . . . . 10 . . . Open Door 2 | . . . . . . . 1 . . . . . 1 . . . . . . . Open DSF 3 | . . . . . . . . . 1 . 1 . . . 1 . . . . . Level Access Points 2 | . 1 . . . . . . . . . . . . . . . 1 . . . Branch Access Points 1 | . . . . . . . . . . . . . . . . . 1 . . . Emergency Access Points 2 | . . . . . . . 1 . . . . . . . . . . . . 1 Machine Index 1 | . . . . . . . . . . . . . . . . . 1 . . . Terminal Index 3 | . . . . . . . . . . . . . . . . . 1 1 1 . Alert Level 1 | . . . . . . . . . . . . . . . 1 . . . . . Unreport Threat 5 | . . . . . . . . . . . . . . . 2 . 3 . . . Locate Traps 2 | . . . . . . . . . . . . . . . . . 2 . . . Derelict Proto ID Bank 1 | . . . . 1 . . . . . . . . . . . . . . . . Fabricator Hacks 1 | . . . . . . . . . . . . . . . . . . . 1 . Build 1 | . . . . . . . . . . . . . . . . . . . 1 . Repair Station Hacks 2 | . . . . . . . . . . . . . . . . . 2 . . . Scan Component 1 | . . . . . . . . . . . . . . . . . 1 . . . Repair 1 | . . . . . . . . . . . . . . . . . 1 . . . Recycling Unit Hacks 1 | . . . . . . . . . . . . . . . . . 1 . . . Report Inventory 1 | . . . . . . . . . . . . . . . . . 1 . . . Scanalyzer 7 | . . . . . . . . . . . . . . . . . 4 3 . . Insert Component 3 | . . . . . . . . . . . . . . . . . 2 1 . . Analyze 4 | . . . . . . . . . . . . . . . . . 2 2 . . Garrison Access Hacks 5 | . . . . . . 1 . . . . . 3 . . . . . . 1 . Unlock Access 2 | . . . . . . 1 . . . . . . . . . . . . 1 . Seal Access 1 | . . . . . . . . . . . . 1 . . . . . . . . Coupler Status 2 | . . . . . . . . . . . . 2 . . . . . . . . Unauthorized Hacks 1 | . . . . . . . . . . . . . . . . . 1 . . . Terminals . | . . . . . . . . . . . . . . . . . . . . . Fabricators . | . . . . . . . . . . . . . . . . . . . . . Repair Stations . | . . . . . . . . . . . . . . . . . . . . . Recycling Units 1 | . . . . . . . . . . . . . . . . . 1 . . . Reject 1 | . . . . . . . . . . . . . . . . . 1 . . . Scanalyzers . | . . . . . . . . . . . . . . . . . . . . . Garrison Access . | . . . . . . . . . . . . . . . . . . . . . Data Cores Recovered . | . . . . . . . . . . . . . . . . . . . . . Used . | . . . . . . . . . . . . . . . . . . . . . Hacking Detections 35 | . . 3 . . . 1 2 1 . . 4 2 . . 2 . 10 3 6 1 Full Trace Events 17 | . . 3 . . . . 1 1 . . 4 . . . . . 2 1 4 1 Feedback Events 3 | . . 1 . . . . . . . . 2 . . . . . . . . . Corruption 3 | . . 1 . . . . . . . . 2 . . . . . . . . . Feedback Blocked . | . . . . . . . . . . . . . . . . . . . . . Robot Schematics Acquired . | . . . . . . . . . . . . . . . . . . . . . Robots Built 1 | . . . . . . . . . . . . . . . . . . . 1 . Authchips . | . . . . . . . . . . . . . . . . . . . . . Time 74 | . . . . . . . . . . . . . . . . . . . 74 . Total Robot Build Rating 9 | . . . . . . . . . . . . . . . . . . . 9 . Part Schematics Acquired 3 | . . . . . . . . . . . . . . . . . 2 1 . . Parts Built . | . . . . . . . . . . . . . . . . . . . . . Authchips . | . . . . . . . . . . . . . . . . . . . . . Time . | . . . . . . . . . . . . . . . . . . . . . Total Part Build Rating . | . . . . . . . . . . . . . . . . . . . . . Parts Repaired 1 | . . . . . . . . . . . . . . . . . 1 . . . Time 28 | . . . . . . . . . . . . . . . . . 28 . . . Parts Recycled . | . . . . . . . . . . . . . . . . . . . . . Recycled Matter . | . . . . . . . . . . . . . . . . . . . . . Retrieved Matter . | . . . . . . . . . . . . . . . . . . . . . Retrieved Components . | . . . . . . . . . . . . . . . . . . . . . Parts Scanalyzed 3 | . . . . . . . . . . . . . . . . . 2 1 . . Part Schematics Acquired 3 | . . . . . . . . . . . . . . . . . 2 1 . . Parts Damaged . | . . . . . . . . . . . . . . . . . . . . . Bothacking | -11 -10 -9 -9 -9 -8 -8 -8 -8 -7 -7 -6 -5 -5 -5 -4 -4 -3 -2 -1 -1 ------------ Run | Yrd Mat Mat Min Exi Min Mat Gar Mat Fac DSF Fac Fac Upp Upp Fac DSF Res Res Acc Gar Used RIF Installer 1 | . . . . . . . 1 . . . . . . . . . . . . . Robots Hacked 7 | . . . . . . . . . . . . 4 1 . . . 2 . . . Non-combat 6 | . . . . . . . . . . . . 4 1 . . . 1 . . . Combat 1 | . . . . . . . . . . . . . . . . . 1 . . . Robot Hacks Applied 7 | . . . . . . . . . . . . 4 1 . . . 2 . . . parse_system 3 | . . . . . . . . . . . . . 1 . . . 2 . . . ignore_repairs 1 | . . . . . . . . . . . . 1 . . . . . . . . ignore_parts 2 | . . . . . . . . . . . . 2 . . . . . . . . check_alert 1 | . . . . . . . . . . . . 1 . . . . . . . . Relay Couplers Released 4 | . . . . . . . 4 . . . . . . . . . . . . . Machine Destruction 4 | . . . . . . . 4 . . . . . . . . . . . . . Fabnet Peak Effective % . | . . . . . . . . . . . . . . . . . . . . . Robots Rewired 2 | . . . . . . . . . . . . 1 1 . . . . . . . Allies Hacked . | . . . . . . . . . . . . . . . . . . . . . Hacks Repelled . | . . . . . . . . . . . . . . . . . . . . . Allies | -11 -10 -9 -9 -9 -8 -8 -8 -8 -7 -7 -6 -5 -5 -5 -4 -4 -3 -2 -1 -1 -------- Run | Yrd Mat Mat Min Exi Min Mat Gar Mat Fac DSF Fac Fac Upp Upp Fac DSF Res Res Acc Gar Total Allies 3 | . . . . . . . . . . . . 1 1 . . . . . 1 . Largest Group 1 | . . . . . . . . . . . . 1 1 . . . . . 1 . Highest-Rated Group 65 | . . . . . . . . . . . . 65 30 . . . . . 62 . Highest-Rated Ally 65 | . . . . . . . . . . . . 65 30 . . . . . 62 . Total Orders 7 | . . . . . . . . . . . . . 4 . . . . 1 2 . ROAM 1 | . . . . . . . . . . . . . 1 . . . . . . . EXPLORE 6 | . . . . . . . . . . . . . 3 . . . . 1 2 . Ally Attacks 1 | . . . . . . . . . . . . . . . . . . . 1 . Total Damage . | . . . . . . . . . . . . . . . . . . . . . Kills . | . . . . . . . . . . . . . . . . . . . . . Allies Corrupted 3 | . . . . . . . . . . . . . . . . . . 3 . . Allies Melted . | . . . . . . . . . . . . . . . . . . . . . Intel | -11 -10 -9 -9 -9 -8 -8 -8 -8 -7 -7 -6 -5 -5 -5 -4 -4 -3 -2 -1 -1 ------- Run | Yrd Mat Mat Min Exi Min Mat Gar Mat Fac DSF Fac Fac Upp Upp Fac DSF Res Res Acc Gar Robot Analysis Total 10 | . . . . . . . . . . . . . . . . . 10 . . . Derelict Logs Recovered 5 | . . . 1 . . . . . . . . . 2 2 . . . . . . Drone Launches 37 | . . . . . . . . . . . . . 14 . . . . 18 5 . Drone Recoveries 15 | . . . . . . . . . . . . . 9 . . . . 2 4 . Exploration | -11 -10 -9 -9 -9 -8 -8 -8 -8 -7 -7 -6 -5 -5 -5 -4 -4 -3 -2 -1 -1 ------------- Run | Yrd Mat Mat Min Exi Min Mat Gar Mat Fac DSF Fac Fac Upp Upp Fac DSF Res Res Acc Gar Turns Passed 3197 | 9 31 49 78 114 55 55 235 312 74 49 221 138 312 34 75 74 718 115 385 64 Spaces Moved 7004 | 18 62 99 223 253 87 49 466 351 223 147 450 386 917 107 237 144 1541 234 934 76 Core 265 | 18 62 50 . . . . . 33 . . . . . . . . 35 29 38 . Treads 21 | . . . . . . . . 21 . . . . . . . . . . . . Legs 4 | . . . . . . . . 4 . . . . . . . . . . . . Wheels . | . . . . . . . . . . . . . . . . . . . . . Hover 310 | . . . . . . . . . . . . . . . . . . 205 105 . Flight 6404 | . . 49 223 253 87 49 466 293 223 147 450 386 917 107 237 144 1506 . 791 76 Fastest Speed 28 | 50 50 31 31 37 50 50 50 32 32 32 28 28 28 32 30 30 31 36 34 40 Average Speed 36 | 50 50 40 34 42 50 50 50 61 32 32 29 28 28 32 30 34 33 38 38 40 Slowest Speed 400 | 50 50 50 37 50 50 50 50 400 32 32 32 103 102 32 32 40 50 50 120 40 Overloaded Moves . | . . . . . . . . . . . . . . . . . . . . . Propulsion Burnouts . | . . . . . . . . . . . . . . . . . . . . . Robots Hopped 82 | . . 4 1 . 2 . 14 5 . . . 10 4 . 2 . 26 . 13 1 Cave-ins Triggered . | . . . . . . . . . . . . . . . . . . . . . Exploration Rate (%) 32 | 4 18 23 61 43 33 7 71 29 9 89 11 11 87 20 6 81 33 11 27 15 Regions Visited 20 Branch Regions 5 Pre-discovered Areas 1 | . . . . . . . . . . . . . . 1 . . . . . . Known Exits Taken 7 | . 1 . . . . 1 . . 1 . . . 1 . 1 . 1 . 1 . Unknown Exits Taken 10 | 1 . 1 1 1 1 . . 1 . . 1 1 . 1 . . . 1 . . Scrap Searched 3 | . . . . . 1 . . . . . . . 2 . . . . . . . Spaces Dug 8 | . . . . . 2 5 . . . . . . . . . . 1 . . . Terrain Destroyed 44 | . . . . . 2 5 . 36 . . . . . . . . 1 . . . Melee . | . . . . . . . . . . . . . . . . . . . . . Projectile 8 | . . . . . 2 5 . . . . . . . . . . 1 . . . AOE 36 | . . . . . . . . 36 . . . . . . . . . . . . Terrain Rammed . | . . . . . . . . . . . . . . . . . . . . . Walls Destroyed . | . . . . . . . . . . . . . . . . . . . . . Machines Disabled . | . . . . . . . . . . . . . . . . . . . . . Actions | -11 -10 -9 -9 -9 -8 -8 -8 -8 -7 -7 -6 -5 -5 -5 -4 -4 -3 -2 -1 -1 --------- Run | Yrd Mat Mat Min Exi Min Mat Gar Mat Fac DSF Fac Fac Upp Upp Fac DSF Res Res Acc Gar Total 7481 | 17 61 100 222 259 89 63 453 428 224 148 536 394 955 106 236 161 1714 256 950 109 Wait 382 | . . . 1 . . 7 . 56 . . 82 . 17 . . . 172 8 8 31 Move 6830 | 17 61 90 220 252 82 49 440 340 222 146 449 367 909 106 232 143 1488 233 910 74 Hop 74 | . . 4 1 . 2 . 11 5 . . . 8 3 . 2 . 26 . 11 1 Pick Up 28 | . . 2 . . . 1 . 1 2 2 . 1 4 . . 3 5 2 5 . Fast Attach 47 | . . 4 . 2 2 1 . 9 . . . 3 4 . 1 12 3 3 3 . Attach 25 | . . . . . . . 1 2 . . 5 . 5 . 1 . 5 1 3 2 Detach 8 | . . . . . . . . 1 . . . 2 1 . . . 3 . . 1 Swap 2 | . . . . . . . . . . . . . . . . 2 . . . . Drop 27 | . . . . 5 1 . . 4 . . . . 4 . . 1 6 . 6 . Fire 44 | . . . . . 2 5 . 10 . . . 13 8 . . . 6 . . . Melee . | . . . . . . . . . . . . . . . . . . . . . Ram 1 | . . . . . . . . . . . . . . . . . . 1 . . Kick . | . . . . . . . . . . . . . . . . . . . . . Crush . | . . . . . . . . . . . . . . . . . . . . . Escape Stasis 5 | . . . . . . . 1 . . . . . . . . . . . 4 . Rewire . | . . . . . . . . . . . . . . . . . . . . . Trap . | . . . . . . . . . . . . . . . . . . . . . Miscellaneous 8 | . . . . . . . . . . . . . . . . . . 8 . . Route ------- -11/Scrapyard -10/Materials (discovered 3 exits: *Mat x3) -9/Materials (discovered 2 exits: [*Min x2]) -9/Mines (discovered 2 exits: *Mat / *Exi) -9/Exiles -8/Mines -8/Materials -8/Garrison (discovered 3 exits: *Mat x3) -8/Materials -7/Factory (discovered 2 exits: *Fac / DSF) -7/DSF -6/Factory -5/Factory -5/Upper Caves -5/Upper Caves -4/Factory (discovered 2 exits: *Res / DSF) -4/DSF -3/Research (discovered 6 exits: *Res x3 / *Arm / Tes x2) -2/Research -1/Access -1/Garrison History --------- Turn | Location | Event 2 | -11/Scrapyard | Met Revision 17 3 | -11/Scrapyard | Discovered new exit (range 15) 10 | -11/Scrapyard | Entered Materials 13 | -10/Materials | Identified exit to Materials 41 | -10/Materials | Entered another Materials area 41 | -9/Materials | Evolved 2 slots: Propulsion x2 83 | -9/Materials | Discovered new exit (range 7) 85 | -9/Materials | Discovered new exit (range 7) 90 | -9/Materials | Entered Mines 92 | -9/Mines | Discovered new exit (range 6) 109 | -9/Mines | Found a hidden stash of uninstalled traps 148 | -9/Mines | YI-UF0 nonchalantly dropped a Grenade Launcher on the ground 155 | -9/Mines | Learned Materials security intel 166 | -9/Mines | Deemed a non-threat by the Exiles lab entrance 167 | -9/Mines | Discovered new exit (range 5) 168 | -9/Mines | Entered Exiles 174 | -9/Exiles | Discovered new exit (range 15) 186 | -9/Exiles | Met 8R-AWN 191 | -9/Exiles | Met EX-HEX 204 | -9/Exiles | Met EX-BIN 208 | -9/Exiles | Aligned with FarCom system 209 | -9/Exiles | Given EX-Vault access code 217 | -9/Exiles | Opened EX-Vault 219 | -9/Exiles | Found Longsword +1 225 | -9/Exiles | Found Flying Fortress v7 240 | -9/Exiles | Warned to stay clear of 0b10 Research branches 282 | -9/Exiles | Left Exiles lab with Flying Fortress v7 282 | -9/Exiles | Entered Mines 335 | -8/Mines | Discovered new exit (range 5) 337 | -8/Mines | Entered Materials 337 | -8/Materials | Evolved 2 slots: Utility x2 392 | -8/Materials | Identified exit to Garrison 392 | -8/Materials | Entered Garrison 416 | -8/Garrison | Build established: Mutant 428 | -8/Garrison | Triggered checkpoint 441 | -8/Garrison | Discovered new exit (range 12) 475 | -8/Garrison | Rescued a captive Derelict 510 | -8/Garrison | Triggered checkpoint 527 | -8/Garrison | Discovered new exit (range 8) 580 | -8/Garrison | Discovered new exit (range 8) 602 | -8/Garrison | Installed Relay Interface Framework 609 | -8/Garrison | Triggered checkpoint 627 | -8/Garrison | Entered Materials 924 | -8/Materials | Discovered new exit (range 15) 925 | -8/Materials | Core integrity fell below 50% 938 | -8/Materials | Core integrity fell below 20% 939 | -8/Materials | Entered Factory 939 | -7/Factory | Evolved 2 slots: Utility x2 955 | -7/Factory | Lost 7 parts (1p3n2u1w) 1009 | -7/Factory | Discovered new exit (range 8) 1013 | -7/Factory | Identified exit to DSF 1013 | -7/Factory | Entered DSF 1018 | -7/DSF | Discovered new exit (range 15) 1032 | -7/DSF | Additional patrols routed to DSF 1062 | -7/DSF | Entered Factory 1062 | -6/Factory | Evolved 2 slots: Utility x2 1205 | -6/Factory | Discovered new exit (range 10) 1208 | -6/Factory | Build established: Sprinter 1283 | -6/Factory | Entered another Factory area 1283 | -5/Factory | Evolved 2 slots: Power x1, Utility x1 1406 | -5/Factory | Discovered new exit (range 9) 1421 | -5/Factory | Entered Upper Caves 1506 | -5/Upper Caves | Learned Factory emergency access door positions 1514 | -5/Upper Caves | Lost 3 allies 1517 | -5/Upper Caves | Encountered a Warlord checkpoint 1551 | -5/Upper Caves | Identified exit to Upper Caves 1707 | -5/Upper Caves | Attracted the attention of an 0b10 checkpoint 1710 | -5/Upper Caves | Found DCF Scrap (15 items) 1733 | -5/Upper Caves | Entered another Upper Caves area 1749 | -5/Upper Caves | Learned Factory stockpile data 1766 | -5/Upper Caves | Discovered new exit (range 8) 1767 | -5/Upper Caves | Entered Factory 1767 | -4/Factory | Evolved 2 slots: Utility x2 1830 | -4/Factory | Discovered new exit (range 2) 1832 | -4/Factory | Spotted B-86 Titan 1842 | -4/Factory | Identified exit to DSF 1842 | -4/Factory | Entered DSF 1864 | -4/DSF | Additional patrols routed to DSF 1902 | -4/DSF | Lost 5 parts (1p2n2u) 1912 | -4/DSF | Discovered new exit (range 11) 1916 | -4/DSF | Entered Research 1916 | -3/Research | Evolved 2 slots: Utility x2 2088 | -3/Research | Repaired Imp. Remote Datajack 2130 | -3/Research | Discovered new exit (range 10) 2134 | -3/Research | Identified exit to Research 2134 | -3/Research | Identified exit to Armory 2134 | -3/Research | Identified exit to Testing 2457 | -3/Research | Build established: Wizard-Mutant 2503 | -3/Research | Spotted B-86 Titan 2621 | -3/Research | Core integrity fell below 50% 2634 | -3/Research | Entered another Research area 2634 | -2/Research | Evolved 2 slots: Utility x2 2654 | -2/Research | Lost 9 parts (4n4u1w) 2721 | -2/Research | Discovered new exit (range 36) 2749 | -2/Research | Entered Access 2749 | -1/Access | Evolved 2 slots: Propulsion x2 2807 | -1/Access | Lost 13 allies 2916 | -1/Access | Fabricated C-65 Expert? 2955 | -1/Access | Lost 4 parts (1p2n1u) 3033 | -1/Access | Search patrols dispatched 3055 | -1/Access | Core integrity fell below 50% 3103 | -1/Access | Core integrity fell below 20% 3134 | -1/Access | Lost 3 parts (2n1u) 3134 | -1/Access | Identified exit to Garrison 3134 | -1/Access | Entered Garrison 3198 | -1/Garrison | Spotted B-99 Colossus 3198 | -1/Garrison | Destroyed by B-99 Colossus with Multirail Last Messages --------------- 03103_ Critical hit (Burn: +37). 03103_ Imp. Hacking Suite destroyed. 03125_ TAYNRBTGRRAQIEAIA QT0XTQNS5|W1TS 03134_ Connecting with Garrison Access... >>Unlock Access door unlocked. 03134_ EXIT=UNLOCKED: GARRISON LOCATION=GARRISON GOAL=ESCAPE 03134_ Receiving FarCom transmissions... 03150_ System corrupted: Heat flow error (+132). 03168_ System corrupted: Matter fused (-8). 03197_ Connecting with Garrison Terminal... >>Access(Emergency) Found 44 emergency access points. Map updated. 03197_ ALERT: Suspicious activity at Terminal G004. Transmitting hostile system tracking data. 03198_ Slug penetrates Wall. Map ----- +----------------------------------------------------+ | ????????????????+????????????????????????????????? | | ????????????????+????????????????????????????????? | | ?????????????????????????????????????????????????? | | ?????????????????????????????????????????????????? | | ????????????????????????????????????????????????+? | | ????????????????????????????????????????????+???+? | | ?????????????????????????????????????????????????? | | ?????????????????????????????????????????????????? | | ???????????????????+?????++?????????+????????????? | | ????????????????????p?s??????????????????????????? | | ?????????????????????ssss ??????????????????????? | | ???????????????????????s ??????????????????????? | | ???????????????????+???? ???? ????????????????? | | ???????????????????????# #?? ##??????????????? | | ?????????????????????+l" ?? ???????????????? | | ???????????????????????" ? BB ????????????????? | | ???????????????????????" ? BB ????????????????? | | ?????????????????????l?" ?????????????????? | | ???????????????????????# #; ??????????????????? | | ???????????????????????# #; ???????????????????? | | ???????????????????????? ???????????????????? | | ????????????+??????????+ ?????????+??????????? | | ???????????????????????? ?????????????????????? | | ????????????????????????# #?????????????????????? | | ????????????????????????# #?????????????????????? | | ?????????????Y??????????#@ #?????????????????????? | | ????????????????????????# ##????????????????????? | | ????????????#+??????????+ T#????????????????????? | | ???????????? ??????????# ##????????????????????? | | ????????????# ??????????# #?????????????????????? | | ????????????# ??????????# #??????????????+??????? | | ????????+???# ??????????# #?????????????????????? | | ????????????# #####+#####p #??????+??????????????+ | | ????????????# #?????????????????????? | | ????????????+ #?????????????????????? | | ????????????## ###+#####+##?????????????????????? | | ?????????????# #?# #???# #??????????????????????? | | ?????????????# #?# #???# #??????????????????????? | | ?????????????# ### #???# #??????????????????????? | | ?????????????# + #???# #??????????????????????? | | ?????????????# ### ##### #####??????????????????? | | ?????????????# #?# # #??????????????????? | | ?????????????# #?# p #??????????????????? | | ???????????### #?# # #??????????????????? | | ???????????# #?# # " #??????????????????? | | ???????????# #?# # """ ""#??????????????????? | | ???????????# #?# # " "#??????????????????? | | ???????????######?# # "#??????????????????? | | ??????????????????# # " "#??????????????????? | | ??????????????????# # """""#??????????????????? | +----------------------------------------------------+ Best States ------------- Heat Dissipation 52 Energy Generation 37 Energy Capacity 275 Matter Stores 275 Matter Capacity 300 Sight Range 16 Terrain Scan Density 10 Cloak Strength 3 Armor Coverage 450 Core Shielding 20 Propulsion Shielding 66 Evasion (%) 64 Recoil Reduction 1 Offensive Hacking 68 Defensive Hacking 40 Item Schematics ----------------- Imp. Remote Datajack | -3/Research | Scanalyzed Q-thruster | -3/Research | Scanalyzed Impulse Thruster | -2/Research | Scanalyzed Robot Schematics ------------------ None Fabricated ------------ C-65 Expert | x1 | -1/Access | Preloaded Alien Tech Used ----------------- None Achievements -------------- Cya! Hunted Challenges ------------ None Game ------ Seed MicrowarpMultinovaFlakker Manual? 0 Play Time 02:47:23 Cumulative 42.4 hours Start 2024.10.17 @ 15:22:02 End 2024.10.20 @ 03:28:22 Sessions 7 Manual Loads 0 Difficulty Rogue Special Mode None Game No. 33 Rogue 33 Adventurer 0 Explorer 0 Win Type - Total 0 Types 0/0/0/0/0/0/0/0/0 Lore% 20 Gallery% 30 Achievement% 30 Wizard Run 0 Options --------- Layout 1 ASCII 0 Keyboard 0 Movement Mouse Keybinds 0 Fullscreen 2 Font 24/X11 Map View 50x35 Zoom Use 0% Tactical HUD 1 Map Filters NONE Filters NONE Steam 1 RUN: 59f18e08-2b40-4865-a959-1dc557a3c8aa